fUST/lending_fUST_20250617
["ID","MTS","AMOUNT","RATE_DAILY","PERIOD"]
[366247862,1750163447110,-460.0,0.00024164,6]
[366247863,1750163447120,-460.0,0.00024164,6]
[366247864,1750163447130,-278.64117286,0.00024164,6]
[366247865,1750163447139,-460.0,0.00024164,6]
[366247866,1750163447149,-933.04,0.00024164,6]
[366247867,1750163447160,-460.0,0.00024164,6]
[366247868,1750163447173,-6872.7,0.00024164,6]
[366247869,1750163447182,-2193.87,0.00024164,6]
[366247870,1750163447192,-1523.66,0.00024164,6]
[366247871,1750163447201,-460.0,0.00024164,6]
[366247872,1750163447211,-303.25220605,0.00024164,6]
[366247873,1750163447220,-384.21768139,0.00024164,6]
[366247874,1750163447230,-460.0,0.00024164,6]
[366247875,1750163447240,-1193.76,0.00024164,6]
[366247876,1750163447249,-685.87,0.00024164,6]
[366247877,1750163447261,-5083.4,0.00024164,6]
[366247878,1750163447271,-460.0,0.00024164,6]
[366247879,1750163447280,-460.0,0.00024164,6]
[366247880,1750163447289,-483.33780845,0.00024164,6]
[366247881,1750163447299,-4926.03,0.00024164,6]
[366247882,1750163447309,-3407.18,0.00024164,6]
[366247883,1750163447319,-2178.8,0.00024164,6]
[366247884,1750163447329,-460.0,0.00024164,6]
[366247885,1750163447339,-460.0,0.00024164,6]
[366247886,1750163447348,-559.76,0.00024164,6]
[366247887,1750163447357,-460.0,0.00024164,6]
[366247888,1750163447368,-1090.34,0.00024164,6]
[366247889,1750163447378,-460.0,0.00024164,6]
[366247890,1750163447387,-460.0,0.00024164,6]
[366247891,1750163447397,-448.16909675,0.00024164,6]
[366247892,1750163447407,-500.0,0.0002417,2]
[366247893,1750163447416,-500.0,0.0002417,2]
[366247894,1750163447426,-151.0,0.0002417,7]
[366247895,1750163447436,-1382.992754,0.0002417,2]
[366247896,1750163447445,-1382.992754,0.0002417,2]
[366247897,1750163447455,-500.0,0.00024173,2]
[366247898,1750163447464,-500.0,0.00024173,2]
[366247899,1750163447474,-287.96614235,0.00024173,2]
[366247900,1750163447484,-500.0,0.00024173,2]
[366247901,1750163447494,-500.0,0.00024173,2]
[366247902,1750163447504,-500.0,0.00024173,2]
[366247903,1750163447515,-500.0,0.00024173,2]
[366247904,1750163447524,-500.0,0.00024173,2]
[366247905,1750163447534,-500.0,0.00024173,2]
[366247906,1750163447543,-500.0,0.00024173,2]
[366247907,1750163447553,-500.0,0.00024173,2]
[366247908,1750163447562,-500.0,0.00024173,2]
[366247909,1750163447572,-474.61070127,0.00024173,2]
[366247910,1750163447582,-500.0,0.00024173,2]
[366247911,1750163447591,-500.0,0.00024173,2]
[366247912,1750163447600,-555.47129503,0.00024173,2]
[366247913,1750163447610,-500.0,0.00024173,2]
[366247914,1750163447619,-500.0,0.00024173,2]
[366247915,1750163447629,-500.0,0.00024173,2]
[366247916,1750163447639,-500.0,0.00024173,2]
[366247917,1750163447648,-500.0,0.00024173,2]
[366247918,1750163447658,-500.0,0.00024173,2]
[366247919,1750163447667,-500.0,0.00024173,2]
[366247920,1750163447677,-500.0,0.00024173,2]
[366247921,1750163447686,-500.0,0.00024173,2]
[366247922,1750163447696,-500.0,0.00024173,2]
[366247923,1750163447705,-500.0,0.00024173,2]
[366247924,1750163447715,-500.0,0.00024173,2]
[366247925,1750163447724,-421.08692831,0.00024173,2]
[366247926,1750163447734,-500.0,0.00024173,2]
[366247927,1750163447743,-600.0,0.00024173,2]
[366247928,1750163447752,-206.0,0.0002418,2]
[366247929,1750163447762,-460.0,0.00024191,6]
[366247930,1750163447772,-460.0,0.00024191,6]
[366247931,1750163447781,-460.0,0.00024191,6]
[366247932,1750163447791,-460.0,0.00024191,6]
[366247933,1750163447800,-460.0,0.00024191,6]
[366247934,1750163447810,-460.0,0.00024191,6]
[366247935,1750163447820,-460.0,0.00024191,6]
[366247936,1750163447829,-460.0,0.00024191,6]
[366247937,1750163447839,-460.0,0.00024191,6]
[366247938,1750163447848,-460.0,0.00024191,6]
[366247939,1750163447858,-460.0,0.00024191,6]
[366247940,1750163447867,-376.70291958,0.00024191,6]
[366247941,1750163447877,-460.0,0.00024191,6]
[366247942,1750163447886,-151.0,0.00024191,7]
[366247943,1750163447895,-460.0,0.00024191,6]
[366247944,1750163447905,-460.0,0.00024191,6]
[366247945,1750163447914,-503.52,0.00024191,6]
[366247946,1750163447923,-460.0,0.00024191,6]
[366247947,1750163447934,-525.85478905,0.00024191,2]
[366247948,1750163447943,-460.0,0.00024191,6]
[366247949,1750163447952,-151.0,0.00024191,7]
[366247950,1750163447962,-387.46194431,0.00024191,6]
[366247951,1750163447971,-460.0,0.00024191,6]
[366247952,1750163447980,-460.0,0.00024191,6]
[366247953,1750163447990,-460.0,0.00024191,6]
[366247954,1750163447999,-248.67660277,0.00024191,6]
[366247955,1750163448008,-460.0,0.00024191,6]
[366247956,1750163448018,-183.18545045,0.00024191,6]
[366247957,1750163448028,-580.01190547,0.00024191,6]
[366247958,1750163448038,-418.78222056,0.00024191,6]
[366247959,1750163448156,-460.0,0.00024191,6]
[366247960,1750163448170,-165.909082,0.00024191,7]
[366247961,1750163448180,-460.0,0.00024191,6]
[366247962,1750163448190,-460.0,0.00024191,6]
[366247963,1750163448200,-460.0,0.00024191,6]
[366247964,1750163448211,-460.0,0.00024191,6]
[366247965,1750163448221,-460.0,0.00024191,6]
[366247966,1750163448231,-460.0,0.00024191,6]
[366247967,1750163448241,-1939.62,0.00024191,2]
[366247968,1750163448251,-482.78276415,0.00024191,6]
[366247969,1750163448261,-500.0,0.00024191,6]
[366247970,1750163448271,-1284.83,0.00024191,6]
[366247971,1750163448280,-630.45,0.00024191,6]
[366247972,1750163448290,-460.0,0.00024191,6]
[366247973,1750163448299,-460.0,0.00024191,6]
[366247974,1750163448309,-285.28969011,0.00024191,6]
[366247975,1750163448320,-878.68,0.00024191,6]
[366247976,1750163448330,-460.0,0.00024191,6]
[366247977,1750163448340,-460.0,0.00024191,6]
[366247978,1750163448350,-354.80566458,0.00024191,6]
[366247979,1750163448361,-500.0,0.00024191,6]
[366247980,1750163448370,-460.0,0.00024191,6]
[366247981,1750163448380,-356.23596072,0.00024191,6]
[366247982,1750163448390,-460.0,0.00024191,6]
[366247983,1750163448407,-400.0,0.00024191,6]
[366247984,1750163448417,-460.0,0.00024191,6]
[366247985,1750163448426,-460.0,0.00024191,6]
[366247986,1750163448436,-460.0,0.00024191,6]
[366247987,1750163448445,-460.0,0.00024191,6]
[366247988,1750163448455,-1177.89,0.00024191,6]
[366247989,1750163448464,-460.0,0.00024191,6]
[366247990,1750163448474,-460.0,0.00024191,6]
[366247991,1750163448483,-460.0,0.00024191,6]
[366247992,1750163448493,-460.0,0.00024191,6]
[366247993,1750163448503,-460.0,0.00024191,6]
[366247994,1750163448515,-460.0,0.00024191,6]
[366247995,1750163448524,-372.36983617,0.00024191,6]
[366247996,1750163448534,-460.0,0.00024191,6]
[366247997,1750163448544,-460.0,0.00024191,6]
[366247998,1750163448554,-460.0,0.00024191,6]
[366247999,1750163448566,-460.0,0.00024191,6]
[366248000,1750163448576,-151.0,0.00024191,7]
[366248001,1750163448586,-151.0,0.00024191,7]
[366248002,1750163448596,-460.0,0.00024191,6]
[366248003,1750163448605,-2315.25,0.00024191,2]
[366248004,1750163448614,-321.62777067,0.00024191,6]
[366248005,1750163448624,-978.66,0.00024191,6]
[366248006,1750163448633,-460.0,0.00024191,6]
[366248007,1750163448643,-460.0,0.00024191,6]
[366248008,1750163448652,-407.32740585,0.00024191,6]
[366248009,1750163448662,-460.0,0.00024191,6]
[366248010,1750163448671,-460.0,0.00024191,6]
[366248011,1750163448680,-460.0,0.00024191,6]
[366248012,1750163448690,-460.0,0.00024191,6]
[366248013,1750163448699,-460.0,0.00024191,6]
[366248014,1750163448708,-821.24,0.00024191,6]
[366248015,1750163448718,-581.99,0.00024191,6]
[366248016,1750163448727,-460.0,0.00024191,6]
[366248017,1750163448737,-162.40508551,0.00024191,6]
[366248018,1750163448746,-849.05,0.00024191,6]
[366248019,1750163448756,-1547.3,0.00024191,6]
[366248020,1750163448765,-460.0,0.00024191,6]
[366248021,1750163448775,-460.0,0.00024191,6]
[366248022,1750163448784,-460.0,0.00024191,6]
[366248023,1750163448793,-762.18,0.00024191,6]
[366248024,1750163448803,-460.0,0.00024191,6]
[366248025,1750163448812,-3518.92,0.00024191,6]
[366248026,1750163448822,-460.0,0.00024191,6]
[366248027,1750163448832,-460.0,0.00024191,6]
[366248028,1750163448842,-837.95,0.00024191,6]
[366248029,1750163448851,-460.0,0.00024191,6]
[366248030,1750163448861,-192.2738361,0.00024191,6]
[366248031,1750163448870,-1921.94,0.00024191,6]
[366248032,1750163448879,-460.0,0.00024191,6]
[366248033,1750163448889,-460.0,0.00024191,6]
[366248034,1750163448898,-1277.31,0.00024191,6]
[366248035,1750163448908,-283.533654,0.00024191,7]
[366248036,1750163448918,-460.0,0.00024191,6]
[366248037,1750163448927,-460.0,0.00024191,6]
[366248038,1750163448936,-549.83,0.00024191,6]
[366248039,1750163448946,-460.0,0.00024191,6]
[366248040,1750163448956,-500.0,0.00024191,2]
[366248041,1750163448965,-500.0,0.00024191,2]
[366248042,1750163448975,-500.0,0.00024191,2]
[366248043,1750163448985,-500.0,0.00024191,2]
[366248044,1750163448994,-500.0,0.00024191,2]
[366248045,1750163449004,-500.0,0.00024191,2]
[366248046,1750163449013,-500.0,0.00024191,2]
[366248047,1750163449023,-460.0,0.00024191,6]
[366248048,1750163449033,-500.0,0.00024191,2]
[366248049,1750163449042,-266.0,0.00024191,2]
[366248050,1750163449052,-500.0,0.00024191,2]
[366248051,1750163449062,-500.0,0.00024191,2]
[366248052,1750163449071,-500.0,0.00024191,2]
[366248053,1750163449081,-500.0,0.00024191,2]
[366248054,1750163449091,-460.0,0.00024191,6]
[366248055,1750163449101,-500.0,0.00024191,2]
[366248056,1750163449111,-596.53017069,0.00024191,2]
[366248057,1750163449121,-874.53,0.00024191,6]
[366248058,1750163449131,-6613.6,0.00024191,6]
[366248059,1750163449140,-1129.55,0.00024191,6]
[366248060,1750163449150,-460.0,0.00024191,6]
[366248061,1750163449159,-460.0,0.00024191,6]
[366248062,1750163449172,-460.0,0.00024191,6]
[366248063,1750163449181,-8359.52,0.00024191,6]
[366248064,1750163449191,-460.0,0.00024191,6]
[366248065,1750163449201,-460.0,0.00024191,6]
[366248066,1750163449210,-460.0,0.00024191,6]
[366248067,1750163449220,-6487.31,0.00024191,6]
[366248068,1750163449229,-460.0,0.00024191,6]
[366248069,1750163449239,-502.8629236,0.00024191,6]
[366248070,1750163449250,-460.0,0.00024191,6]
[366248071,1750163449260,-460.0,0.00024191,6]
[366248072,1750163449270,-460.0,0.00024191,6]
[366248073,1750163449279,-624.57,0.00024191,6]
[366248074,1750163449289,-1362.48,0.00024191,6]
[366248075,1750163449299,-460.0,0.00024191,6]
[366248076,1750163449308,-5310.29,0.00024191,6]
[366248077,1750163449318,-777.18,0.00024191,6]
[366248078,1750163449328,-460.0,0.00024191,6]
[366248079,1750163449338,-1708.25,0.00024191,6]
[366248080,1750163449347,-460.0,0.00024191,6]
[366248081,1750163449357,-460.0,0.00024191,6]
[366248082,1750163449367,-648.65,0.00024191,6]
[366248083,1750163449376,-460.0,0.00024191,6]
[366248084,1750163449391,-6396.31,0.00024191,6]
[366248085,1750163449400,-2796.25,0.00024191,6]
[366248086,1750163449411,-1461.33,0.00024191,6]
[366248087,1750163449422,-2519.23,0.00024191,6]
[366248088,1750163449432,-460.0,0.00024191,6]
[366248089,1750163449442,-460.0,0.00024191,6]
[366248090,1750163449451,-460.0,0.00024191,6]
[366248091,1750163449460,-537.42,0.00024191,6]
[366248092,1750163449469,-344.75076286,0.00024191,6]
[366248093,1750163449478,-460.0,0.00024191,6]
[366248094,1750163449488,-282.62702066,0.00024191,6]
[366248095,1750163449497,-1382.992754,0.00024191,2]
[366248096,1750163449506,-460.0,0.00024191,6]
[366248097,1750163449516,-1307.73,0.00024191,6]
[366248098,1750163449525,-460.0,0.00024191,6]
[366248099,1750163449535,-1382.992754,0.00024191,2]
[366248100,1750163449545,-460.0,0.00024191,6]
[366248101,1750163449556,-460.0,0.00024191,6]
[366248102,1750163449566,-492.68,0.00024191,6]
[366248103,1750163449673,-460.0,0.00024191,6]
[366248104,1750163449683,-628.58,0.00024191,6]
[366248105,1750163449692,-295.16155485,0.00024191,6]
[366248106,1750163449703,-460.0,0.00024191,6]
[366248107,1750163449713,-615.28,0.00024191,6]
[366248108,1750163449723,-460.0,0.00024191,6]
[366248109,1750163449733,-2727.75,0.00024191,6]
[366248110,1750163449742,-460.0,0.00024191,6]
[366248111,1750163449751,-196.15985145,0.00024191,6]
[366248112,1750163449761,-2511.64,0.00024191,6]
[366248113,1750163449771,-4928.55,0.00024191,6]
[366248114,1750163449780,-1808.21,0.00024191,6]
[366248115,1750163449790,-460.0,0.00024191,6]
[366248116,1750163449799,-644.18,0.00024191,6]
[366248117,1750163449808,-460.0,0.00024191,6]
[366248118,1750163449818,-463.16,0.00024191,6]
[366248119,1750163449828,-660.71,0.00024191,6]
[366248120,1750163449837,-2338.38,0.00024191,6]
[366248121,1750163449847,-460.0,0.00024191,6]
[366248122,1750163449857,-292.68998485,0.00024191,6]
[366248123,1750163449866,-460.0,0.00024191,6]
[366248124,1750163449876,-800.18,0.00024191,6]
[366248125,1750163449885,-1121.25,0.00024191,6]
[366248126,1750163449895,-460.0,0.00024191,6]
[366248127,1750163449905,-460.0,0.00024191,6]
[366248128,1750163449914,-200.0,0.00024191,6]
[366248129,1750163449923,-763.16,0.00024191,6]
[366248130,1750163449932,-460.0,0.00024191,6]
[366248131,1750163449942,-1186.33,0.00024191,6]
[366248132,1750163449951,-460.0,0.00024191,6]
[366248133,1750163449961,-460.0,0.00024191,6]
[366248134,1750163449971,-460.0,0.00024191,6]
[366248135,1750163449980,-460.0,0.00024191,6]
[366248136,1750163449989,-915.42,0.00024191,6]
[366248137,1750163449998,-460.0,0.00024191,6]
[366248138,1750163450008,-460.0,0.00024191,6]
[366248139,1750163450018,-460.0,0.00024191,6]
[366248140,1750163450028,-460.0,0.00024191,6]
[366248141,1750163450038,-933.04,0.00024191,6]
[366248142,1750163450047,-154.52466864,0.00024191,6]
[366248143,1750163450056,-6872.7,0.00024191,6]
[366248144,1750163450066,-2193.87,0.00024191,6]
[366248145,1750163450075,-1523.66,0.00024191,6]
[366248146,1750163450085,-460.0,0.00024191,6]
[366248147,1750163450095,-492.45584504,0.00024191,6]
[366248148,1750163450105,-1193.76,0.00024191,6]
[366248149,1750163450114,-685.87,0.00024191,6]
[366248150,1750163450123,-5083.4,0.00024191,6]
[366248151,1750163450133,-460.0,0.00024191,6]
[366248152,1750163450142,-460.0,0.00024191,6]
[366248153,1750163450152,-4926.03,0.00024191,6]
[366248154,1750163450162,-3407.18,0.00024191,6]
[366248155,1750163450175,-2178.8,0.00024191,6]
[366248156,1750163450184,-460.0,0.00024191,6]
[366248157,1750163450194,-460.0,0.00024191,6]
[366248158,1750163450203,-559.76,0.00024191,6]
[366248159,1750163450214,-460.0,0.00024191,6]
[366248160,1750163450223,-1090.34,0.00024191,6]
[366248161,1750163450232,-460.0,0.00024191,6]
[366248162,1750163450242,-275.19625915,0.00024191,6]
[366248163,1750163450252,-1317.07,0.000242,7]
[366248164,1750163450262,-1840.97,0.000242,7]
[366248165,1750163450271,-151.0,0.000242,7]
[366248166,1750163450281,-151.0,0.000242,7]
[366248167,1750163450291,-151.0,0.000242,9]
[366248168,1750163450300,-151.0,0.000242,6]
[366248169,1750163450309,-4886.53,0.000242,7]
[366248170,1750163450319,-151.0,0.000242,10]
[366248171,1750163450328,-151.0,0.000242,6]
[366248172,1750163450337,-135808.37,0.000242,2]
[366248173,1750163450347,-151.0,0.000242,5]
[366248174,1750163450358,-3713.72234058,0.000242,2]
[366248175,1750163450367,-699.4887,0.000242,2]
[366248176,1750163450376,-1382.992754,0.000242,2]
[366248177,1750163450385,-1382.992754,0.000242,2]
[366248178,1750163450395,-12540.12310952,0.000242,7]
[366248179,1750163450404,-151.0,0.00024202,7]
[366248180,1750163450414,-500.0,0.00024217,2]
[366248181,1750163450424,-151.0,0.00024219,7]
[366248182,1750163450433,-460.0,0.00024219,6]
[366248183,1750163450443,-452.76995747,0.00024219,6]
[366248184,1750163450452,-485.3403064,0.00024219,6]
[366248185,1750163450462,-460.0,0.00024219,6]
[366248186,1750163450471,-460.0,0.00024219,6]
[366248187,1750163450481,-151.0,0.00024219,7]
[366248188,1750163450490,-308.11677155,0.00024219,6]
[366248189,1750163450500,-460.0,0.00024219,6]
[366248190,1750163450510,-460.0,0.00024219,6]
[366248191,1750163450519,-245.0,0.00024219,6]
[366248192,1750163450528,-460.0,0.00024219,6]
[366248193,1750163450538,-289.48835644,0.00024219,6]
[366248194,1750163450547,-460.0,0.00024219,6]
[366248195,1750163450557,-460.0,0.00024219,6]
[366248196,1750163450567,-254.52066886,0.00024219,6]
[366248197,1750163450576,-503.52,0.00024219,6]
[366248198,1750163450585,-306.13715019,0.00024219,6]
[366248199,1750163450595,-151.0,0.00024219,7]
[366248200,1750163450604,-460.0,0.00024219,6]
[366248201,1750163450614,-151.0,0.00024219,7]
[366248202,1750163450623,-460.0,0.00024219,6]
[366248203,1750163450634,-460.0,0.00024219,6]
[366248204,1750163450651,-201.22807331,0.00024219,6]
[366248205,1750163450660,-153.04060003,0.00024219,6]
[366248206,1750163450670,-460.0,0.00024219,6]
[366248207,1750163450679,-460.0,0.00024219,6]
[366248208,1750163450689,-243.78789005,0.00024219,6]
[366248209,1750163450698,-460.0,0.00024219,6]
[366248210,1750163450708,-460.0,0.00024219,6]
[366248211,1750163450717,-218.54776018,0.00024219,6]
[366248212,1750163450727,-460.0,0.00024219,6]
[366248213,1750163450736,-1939.62,0.00024219,2]
[366248214,1750163450745,-532.5467727,0.00024219,6]
[366248215,1750163450754,-1284.83,0.00024219,6]
[366248216,1750163450764,-630.45,0.00024219,6]
[366248217,1750163450774,-417.53067602,0.00024219,6]
[366248218,1750163450783,-272.78254153,0.00024219,6]
[366248219,1750163450792,-878.68,0.00024219,6]
[366248220,1750163450802,-460.0,0.00024219,6]
[366248221,1750163450811,-460.0,0.00024219,6]
[366248222,1750163450821,-500.0,0.00024219,6]
[366248223,1750163450830,-460.0,0.00024219,6]
[366248224,1750163450840,-460.0,0.00024219,6]
[366248225,1750163450849,-460.0,0.00024219,6]
[366248226,1750163450862,-460.0,0.00024219,6]
[366248227,1750163450871,-460.0,0.00024219,6]
[366248228,1750163450880,-460.0,0.00024219,6]
[366248229,1750163450889,-1177.89,0.00024219,6]
[366248230,1750163450899,-460.0,0.00024219,6]
[366248231,1750163450908,-460.0,0.00024219,6]
[366248232,1750163450918,-460.0,0.00024219,6]
[366248233,1750163450927,-460.0,0.00024219,6]
[366248234,1750163451023,-460.0,0.00024219,6]
[366248235,1750163451045,-606.46224606,0.00024219,6]
[366248236,1750163451054,-460.0,0.00024219,6]
[366248237,1750163451064,-460.0,0.00024219,6]
[366248238,1750163451073,-460.0,0.00024219,6]
[366248239,1750163451083,-460.0,0.00024219,6]
[366248240,1750163451093,-460.0,0.00024219,6]
[366248241,1750163451102,-2315.25,0.00024219,2]
[366248242,1750163451112,-978.66,0.00024219,6]
[366248243,1750163451122,-460.0,0.00024219,6]
[366248244,1750163451131,-460.0,0.00024219,6]
[366248245,1750163451141,-460.0,0.00024219,6]
[366248246,1750163451150,-460.0,0.00024219,6]
[366248247,1750163451159,-460.0,0.00024219,6]
[366248248,1750163451172,-460.0,0.00024219,6]
[366248249,1750163451182,-389.9118259,0.00024219,6]
[366248250,1750163451192,-821.24,0.00024219,6]
[366248251,1750163451201,-581.99,0.00024219,6]
[366248252,1750163451212,-460.0,0.00024219,6]
[366248253,1750163451222,-849.05,0.00024219,6]
[366248254,1750163451231,-1547.3,0.00024219,6]
[366248255,1750163451241,-460.0,0.00024219,6]
[366248256,1750163451252,-460.0,0.00024219,6]
[366248257,1750163451261,-460.0,0.00024219,6]
[366248258,1750163451272,-460.0,0.00024219,6]
[366248259,1750163451282,-3518.92,0.00024219,6]
[366248260,1750163451292,-460.0,0.00024219,6]
[366248261,1750163451301,-762.18,0.00024219,6]
[366248262,1750163451311,-332.92515591,0.00024219,6]
[366248263,1750163451321,-837.95,0.00024219,6]
[366248264,1750163451330,-460.0,0.00024219,6]
[366248265,1750163451340,-1921.94,0.00024219,6]
[366248266,1750163451352,-411.72152024,0.00024219,6]
[366248267,1750163451362,-460.0,0.00024219,6]
[366248268,1750163451371,-1277.31,0.00024219,6]
[366248269,1750163451381,-460.0,0.00024219,6]
[366248270,1750163451391,-549.83,0.00024219,6]
[366248271,1750163451401,-460.0,0.00024219,6]
[366248272,1750163451411,-460.0,0.00024219,6]
[366248273,1750163451421,-460.0,0.00024219,6]
[366248274,1750163451430,-460.0,0.00024219,6]
[366248275,1750163451440,-874.53,0.00024219,6]
[366248276,1750163451449,-6613.6,0.00024219,6]
[366248277,1750163451459,-1129.55,0.00024219,6]
[366248278,1750163451468,-460.0,0.00024219,6]
[366248279,1750163451478,-460.0,0.00024219,6]
[366248280,1750163451487,-356.25668534,0.00024219,6]
[366248281,1750163451497,-8359.52,0.00024219,6]
[366248282,1750163451507,-460.0,0.00024219,6]
[366248283,1750163451519,-286.94414893,0.00024219,6]
[366248284,1750163451529,-256.55653973,0.00024219,6]
[366248285,1750163451539,-6487.31,0.00024219,6]
[366248286,1750163451549,-460.0,0.00024219,6]
[366248287,1750163451559,-460.0,0.00024219,6]
[366248288,1750163451568,-460.0,0.00024219,6]
[366248289,1750163451577,-460.0,0.00024219,6]
[366248290,1750163451587,-624.57,0.00024219,6]
[366248291,1750163451596,-1362.48,0.00024219,6]
[366248292,1750163451607,-460.0,0.00024219,6]
[366248293,1750163451616,-5310.29,0.00024219,6]
[366248294,1750163451626,-777.18,0.00024219,6]
[366248295,1750163451635,-460.0,0.00024219,6]
[366248296,1750163451645,-1708.25,0.00024219,6]
[366248297,1750163451654,-460.0,0.00024219,6]
[366248298,1750163451664,-460.0,0.00024219,6]
[366248299,1750163451674,-648.65,0.00024219,6]
[366248300,1750163451685,-460.0,0.00024219,6]
[366248301,1750163451694,-6396.31,0.00024219,6]
[366248302,1750163451704,-2796.25,0.00024219,6]
[366248303,1750163451714,-1461.33,0.00024219,6]
[366248304,1750163451724,-2519.23,0.00024219,6]
[366248305,1750163451733,-460.0,0.00024219,6]
[366248306,1750163451743,-460.0,0.00024219,6]
[366248307,1750163451752,-357.72013325,0.00024219,6]
[366248308,1750163451762,-537.42,0.00024219,6]
[366248309,1750163451772,-460.0,0.00024219,6]
[366248310,1750163451782,-1382.992754,0.00024219,2]
[366248311,1750163451792,-460.0,0.00024219,6]
[366248312,1750163451801,-1307.73,0.00024219,6]
[366248313,1750163451811,-460.0,0.00024219,6]
[366248314,1750163451820,-278.69119834,0.00024219,6]
[366248315,1750163451830,-1382.992754,0.00024219,2]
[366248316,1750163451840,-324.15587126,0.00024219,6]
[366248317,1750163451849,-492.68,0.00024219,6]
[366248318,1750163451858,-460.0,0.00024219,6]
[366248319,1750163451868,-628.58,0.00024219,6]
[366248320,1750163451877,-460.0,0.00024219,6]
[366248321,1750163451886,-615.28,0.00024219,6]
[366248322,1750163451895,-460.0,0.00024219,6]
[366248323,1750163451905,-2727.75,0.00024219,6]
[366248324,1750163451914,-460.0,0.00024219,6]
[366248325,1750163451924,-2511.64,0.00024219,6]
[366248326,1750163451933,-4928.55,0.00024219,6]
[366248327,1750163451942,-1808.21,0.00024219,6]
[366248328,1750163451952,-460.0,0.00024219,6]
[366248329,1750163451962,-644.18,0.00024219,6]
[366248330,1750163451971,-460.0,0.00024219,6]
[366248331,1750163451980,-463.16,0.00024219,6]
[366248332,1750163451989,-660.71,0.00024219,6]
[366248333,1750163451999,-2338.38,0.00024219,6]
[366248334,1750163452008,-460.0,0.00024219,6]
[366248335,1750163452019,-460.0,0.00024219,6]
[366248336,1750163452028,-800.18,0.00024219,6]
[366248337,1750163452037,-1121.25,0.00024219,6]
[366248338,1750163452047,-366.4518206,0.00024219,6]
[366248339,1750163452056,-460.0,0.00024219,6]
[366248340,1750163452066,-200.0,0.00024219,6]
[366248341,1750163452076,-763.16,0.00024219,6]
[366248342,1750163452085,-460.0,0.00024219,6]
[366248343,1750163452095,-1186.33,0.00024219,6]
[366248344,1750163452105,-460.0,0.00024219,6]
[366248345,1750163452115,-363.46552697,0.00024219,6]
[366248346,1750163452124,-460.0,0.00024219,6]
[366248347,1750163452133,-581.92522829,0.00024219,6]
[366248348,1750163452144,-915.42,0.00024219,6]
[366248349,1750163452153,-460.0,0.00024219,6]
[366248350,1750163452164,-460.0,0.00024219,6]
[366248351,1750163452176,-460.0,0.00024219,6]
[366248352,1750163452185,-460.0,0.00024219,6]
[366248353,1750163452195,-933.04,0.00024219,6]
[366248354,1750163452204,-6872.7,0.00024219,6]
[366248355,1750163452214,-2193.87,0.00024219,6]
[366248356,1750163452320,-1523.66,0.00024219,6]
[366248357,1750163452330,-460.0,0.00024219,6]
[366248358,1750163452339,-1193.76,0.00024219,6]
[366248359,1750163452349,-685.87,0.00024219,6]
[366248360,1750163452359,-5083.4,0.00024219,6]
[366248361,1750163452368,-460.0,0.00024219,6]